bitfinex/quotes_SOLUSD_20251224
["timestamp","ask_amount","ask_price","bid_price","bid_amount"]
[1766538063289,2.62463544,124.0,123.97,0.71]
[1766538063601,2.62463544,124.0,123.96,0.71]
[1766538063602,2.62463544,123.99,123.96,0.71]
[1766538064686,10.68993674,123.99,123.96,0.71]
[1766538065623,2.98463544,123.97,123.93,0.71]
[1766538065985,2.62463544,123.96,123.93,0.71]
[1766538066290,2.62463544,123.94,123.91,0.71]
[1766538066821,2.62463544,123.92,123.89,0.71]
[1766538067024,2.62463544,123.91,123.89,0.71]
[1766538067196,2.62463544,123.91,123.88,0.2]
[1766538067406,2.62463544,123.9,123.88,0.2]
[1766538067614,0.36,123.92,123.88,0.2]
[1766538067615,2.62463544,123.91,123.88,0.2]
[1766538067799,2.62463544,123.91,123.88,0.88]
[1766538068001,2.98463544,123.92,123.88,0.88]
[1766538069005,10.69436694,123.92,123.89,0.68]
[1766538069217,10.69370668,123.93,123.89,0.68]
[1766538069420,2.62463544,123.92,123.89,0.68]
[1766538071526,1.81753294,123.92,123.89,0.68]
[1766538071942,7.32336457,123.92,123.89,0.68]
[1766538072509,8.06907124,123.93,123.89,0.68]
[1766538072721,15.39243581,123.93,123.89,0.68]
[1766538073133,8.06907124,123.93,123.89,0.68]
[1766538073331,15.39243581,123.93,123.89,0.68]
[1766538073530,15.39243581,123.93,123.89,8.00336457]
[1766538073834,30.47188787,123.94,123.9,0.68]
[1766538074838,15.75188787,123.94,123.9,0.68]
[1766538075032,15.39188787,123.94,123.91,0.68]
[1766538075241,7.32336457,123.94,123.91,0.68]
[1766538075654,15.39208435,123.94,123.91,0.68]
[1766538077325,8.06798183,123.95,123.91,0.68]
[1766538077517,8.06798183,123.95,123.92,0.68]
[1766538078343,15.3913464,123.95,123.92,0.68]
[1766538081731,8.06798183,123.95,123.92,0.68]
[1766538085042,15.3913464,123.95,123.92,0.68]
[1766538085251,15.7513464,123.95,123.92,0.68]
[1766538086043,15.3913464,123.95,123.92,0.68]
[1766538086543,22.80739466,123.96,123.92,0.68]
[1766538086936,30.13075923,123.96,123.92,0.68]
[1766538088430,22.80739466,123.96,123.93,0.68]
[1766538088627,8.06739466,123.96,123.93,8.00336457]
[1766538088845,8.06739466,123.96,123.94,0.68]
[1766538089049,15.3901547,123.97,123.94,0.68]
[1766538090824,22.80612983,123.98,123.94,7.32336457]
[1766538091032,14.74,124.0,123.97,0.68]
[1766538091428,22.80504246,124.0,123.97,0.68]
[1766538091836,15.38743196,124.01,123.97,8.00336457]
[1766538092036,8.06406739,124.01,123.98,0.68]
[1766538092853,22.80333973,124.02,123.99,0.68]
[1766538094056,14.74,124.02,123.99,2.62442108]
[1766538094356,22.90203078,124.04,124.01,0.69]
[1766538094754,14.84,124.04,124.01,0.69]
[1766538094945,0.1,124.04,124.01,0.69]
[1766538095541,0.1,124.04,124.01,2.62442108]
[1766538095744,0.1,124.04,124.02,0.69]
[1766538098763,0.1,124.04,124.0,2.62442108]
[1766538098949,2.72442108,124.04,124.01,0.7]
[1766538099150,0.1,124.04,124.01,0.7]
[1766538099458,0.1,124.04,124.02,0.7]
[1766538101049,10.78642422,124.04,124.0,2.62442108]
[1766538101253,10.78642422,124.04,124.01,0.7]
[1766538101561,0.1,124.04,124.02,0.7]
[1766538101858,11.14634282,124.04,123.98,0.7]
[1766538102065,11.14634282,124.04,123.99,2.62442108]
[1766538102247,11.14634282,124.04,124.0,0.7]
[1766538104163,11.14634282,124.04,124.01,0.7]
[1766538105695,8.52192174,124.04,124.01,0.7]
[1766538105966,11.14634282,124.04,124.01,0.7]
[1766538106652,10.78634282,124.04,124.01,0.7]
[1766538106856,0.1,124.04,124.01,0.7]
[1766538107565,2.62442108,124.03,124.01,0.7]
[1766538107740,10.68705402,124.03,124.01,0.7]
[1766538108261,2.62442108,124.02,123.98,0.7]
[1766538108671,2.62442108,124.02,123.98,3.32442108]
[1766538108970,2.62442108,124.02,123.99,0.7]
[1766538109147,23.14263294,124.03,123.99,0.7]
[1766538109346,2.62442108,124.02,123.99,0.7]
[1766538110162,23.14263294,124.03,123.99,2.62442108]
[1766538110464,8.16214429,124.04,124.0,0.7]
[1766538110769,0.36,124.0,123.96,0.7]
[1766538110942,2.98442108,124.0,123.96,0.7]
[1766538111754,11.04925292,124.0,123.96,0.7]
[1766538112268,10.68925292,124.0,123.96,0.7]
[1766538113258,10.68925292,124.0,123.94,3.32442108]
[1766538113259,2.62442108,123.98,123.94,3.32442108]
[1766538113466,2.98442108,123.98,123.94,0.7]
[1766538113773,0.36,123.98,123.94,0.7]
[1766538114069,2.98442108,123.98,123.94,0.7]
[1766538114246,2.62442108,123.98,123.94,0.7]
[1766538115370,8.42577963,123.99,123.95,0.7]
[1766538115548,8.42577963,123.99,123.93,3.32442108]
[1766538115549,2.62442108,123.97,123.93,3.32442108]
[1766538115754,2.98442108,123.97,123.93,0.7]
[1766538116154,2.62442108,123.96,123.93,0.7]
[1766538117163,10.69163402,123.96,123.93,0.7]
[1766538117754,2.62442108,123.95,123.93,0.7]
[1766538118156,10.69163402,123.96,123.93,0.7]
[1766538118981,11.05113978,123.97,123.93,0.7]
[1766538119164,2.62442108,123.96,123.93,0.7]
[1766538119982,1.68146051,123.96,123.93,0.7]
[1766538120587,9.74863227,123.96,123.93,0.7]
[1766538126562,8.06658234,123.97,123.94,0.7]
[1766538126767,9.74804285,123.97,123.94,0.7]
[1766538127687,2.04146051,123.96,123.92,0.7]
[1766538127882,2.04146051,123.96,123.93,0.7]
[1766538128462,8.06658234,123.97,123.93,0.7]
[1766538128774,9.74804285,123.97,123.93,0.7]
[1766538129683,10.10804285,123.97,123.93,0.7]
[1766538131692,10.10804285,123.97,123.92,1.68146051]
[1766538131693,0.36,123.95,123.92,0.7]
[1766538132282,10.10906291,123.96,123.92,0.7]
[1766538132922,1.68146051,123.95,123.92,0.7]
[1766538134399,8.0684202,123.94,123.92,0.7]
[1766538134579,1.68146051,123.93,123.9,0.7]
[1766538134779,2.04146051,123.93,123.9,0.7]
[1766538135090,2.04146051,123.92,123.88,0.9]
[1766538135480,0.36,123.92,123.89,0.7]
[1766538135777,1.68146051,123.93,123.89,0.7]
[1766538135984,1.68146051,123.93,123.89,2.38146051]
[1766538136197,30.28093121,123.94,123.9,0.7]
[1766538137209,9.75105473,123.93,123.9,0.7]
[1766538137712,1.68146051,123.92,123.9,0.7]
[1766538138278,30.28373285,123.93,123.9,0.7]
[1766538139289,8.42959422,123.93,123.9,0.7]
[1766538139607,8.06959422,123.93,123.9,0.7]
[1766538141697,9.75105473,123.93,123.9,0.7]
[1766538141995,10.11105473,123.93,123.88,1.88146051]
[1766538142202,1.68146051,123.92,123.89,0.7]
[1766538142386,0.36,123.89,123.86,0.7]
[1766538142580,1.68146051,123.88,123.85,0.9]
[1766538142781,1.68146051,123.88,123.86,0.7]
[1766538142978,2.04146051,123.89,123.86,0.7]
[1766538143237,1.68146051,123.89,123.86,0.7]
[1766538143406,16.42146051,123.91,123.87,0.7]
[1766538143714,9.75248553,123.9,123.87,0.7]
[1766538144995,1.68146051,123.89,123.85,0.2]
[1766538145187,2.39146051,123.89,123.85,0.2]
[1766538145393,2.39146051,123.89,123.85,1.88146051]
[1766538145707,10.46348194,123.89,123.85,0.2]
[1766538145885,10.46348194,123.89,123.85,1.88146051]
[1766538147116,10.46348194,123.89,123.86,0.7]
[1766538148306,2.39146051,123.88,123.85,0.2]
[1766538148634,2.39146051,123.86,123.82,2.58146051]
[1766538148836,2.39146051,123.86,123.82,0.9]
[1766538148999,2.39146051,123.85,123.82,0.9]
[1766538149334,2.39146051,123.85,123.82,0.2]
[1766538149507,2.39146051,123.85,123.82,0.9]
[1766538150323,8.7846403,123.85,123.82,0.9]
[1766538152627,0.71,123.84,123.82,0.2]
[1766538153402,10.46610081,123.85,123.82,0.2]
[1766538153604,8.7846403,123.85,123.82,0.9]
[1766538153820,8.07376992,123.86,123.83,0.7]
[1766538155008,2.40146051,123.85,123.82,0.2]
[1766538155227,0.72,123.84,123.82,0.2]
[1766538155737,2.40146051,123.84,123.82,1e-08]
[1766538157020,8.07558749,123.83,123.82,1e-08]
[1766538158816,8.79558749,123.83,123.81,1e-08]
[1766538159019,2.40146051,123.82,123.8,0.2]
[1766538159347,8.79689201,123.81,123.79,0.2]
[1766538160008,10.47796702,123.82,123.79,0.2]
[1766538160207,8.79650651,123.82,123.79,0.86]
[1766538160426,10.47796702,123.82,123.79,0.2]
[1766538160832,10.47796702,123.82,123.79,0.86]
[1766538162138,10.47796702,123.82,123.79,0.2]
[1766538163845,22.81581211,123.83,123.8,0.66]
[1766538164237,2.40146051,123.86,123.82,0.66]
[1766538164545,8.07297973,123.87,123.84,0.66]
[1766538164721,15.46,123.88,123.85,0.66]
[1766538165124,15.46,123.88,123.82,0.66]
[1766538165425,17.14146051,123.9,123.86,0.66]
[1766538165626,0.72,123.89,123.86,0.66]
[1766538166129,0.72,123.89,123.85,2.34146051]
[1766538166518,16.42146051,123.9,123.86,2.34146051]
[1766538166519,22.81132344,123.9,123.86,2.34146051]
[1766538166719,23.53132344,123.9,123.87,0.66]
[1766538167344,23.53132344,123.9,123.87,2.34146051]
[1766538167524,8.07096387,123.91,123.88,0.66]
[1766538168720,8.79096387,123.91,123.88,0.66]
[1766538171449,0.72,123.9,123.86,1.68146051]
[1766538171625,15.46,123.9,123.87,0.66]
[1766538173951,23.5311934,123.9,123.87,0.66]
[1766538174323,23.5311934,123.9,123.87,2.34146051]
[1766538174533,22.8111934,123.9,123.88,2.34146051]
[1766538174747,8.07045938,123.91,123.88,2.34146051]
[1766538176052,8.07045938,123.91,123.88,0.66]
[1766538176259,8.07045938,123.91,123.88,2.34146051]
[1766538178846,8.07045938,123.91,123.89,2.34146051]
[1766538179961,8.07045938,123.91,123.89,3.28864986]
[1766538180337,8.07045938,123.91,123.89,0.66]
[1766538180566,8.07045938,123.91,123.88,3.28864986]
[1766538180859,0.72,123.9,123.86,3.28864986]
[1766538182658,15.46,123.9,123.86,3.28864986]
[1766538182833,0.72,123.88,123.84,3.28864986]
[1766538183032,15.46,123.88,123.84,3.28864986]
[1766538183365,0.72,123.87,123.84,0.66]
[1766538183559,0.72,123.87,123.84,3.28864986]
[1766538184258,8.79335915,123.87,123.84,3.28864986]
[1766538184850,8.79335915,123.87,123.84,0.66]
[1766538187059,3.32864986,123.86,123.81,0.66]
[1766538187263,3.32864986,123.86,123.82,3.28864986]
[1766538187460,0.7,123.86,123.82,3.28864986]
[1766538187653,0.7,123.86,123.81,0.66]
[1766538187654,0.7,123.85,123.81,0.66]
[1766538187850,3.32864986,123.85,123.81,0.66]
[1766538188047,0.7,123.84,123.81,0.66]
[1766538188287,0.7,123.84,123.79,0.2]
[1766538188457,0.7,123.82,123.79,0.86]
[1766538189367,8.77654296,123.82,123.79,0.86]
[1766538190047,8.77654296,123.82,123.79,0.2]
[1766538191363,10.43767296,123.86,123.82,0.66]
[1766538191560,8.07477134,123.85,123.83,0.66]
[1766538191946,8.07477134,123.85,123.82,0.66]
[1766538192152,8.77477134,123.85,123.82,0.66]
[1766538192668,8.07477134,123.85,123.82,3.28864986]
[1766538193576,0.7,123.84,123.8,3.28864986]
[1766538194072,3.32864986,123.84,123.8,0.66]
[1766538194278,0.7,123.84,123.8,3.28864986]
[1766538195786,8.77530708,123.84,123.8,3.28864986]
[1766538196673,8.77530708,123.84,123.8,0.66]
[1766538196876,8.77530708,123.84,123.8,3.28864986]
[1766538197872,8.07530708,123.84,123.8,0.66]
[1766538198056,23.51458146,123.85,123.82,0.66]
[1766538198257,8.7739765,123.86,123.83,0.66]
[1766538204074,11.40262636,123.86,123.83,0.66]
[1766538204884,0.7,123.85,123.82,0.66]
[1766538205469,3.32864986,123.85,123.82,0.66]
[1766538205870,18.06864986,123.85,123.82,0.66]
[1766538206273,8.0749354,123.84,123.82,0.66]
[1766538209395,22.81457884,123.85,123.82,3.28864986]
[1766538209591,22.81457884,123.85,123.82,2.62864986]
[1766538209795,22.81457884,123.85,123.83,0.66]
[1766538210397,8.07457884,123.85,123.83,0.66]
[1766538210587,33.25080544,123.87,123.84,2.62864986]
[1766538210899,22.81313248,123.87,123.85,0.66]
[1766538211693,8.07313248,123.87,123.85,3.28864986]
[1766538212178,8.07313248,123.87,123.85,0.66]
[1766538213625,22.81226807,123.89,123.85,2.62864986]
[1766538213921,22.81226807,123.89,123.86,0.66]
[1766538218005,23.52226807,123.89,123.86,0.66]
[1766538220813,122.87503246,123.92,123.88,2.62864986]
[1766538220998,8.0706054,123.91,123.89,0.68]
[1766538221788,8.7806054,123.91,123.88,0.68]
[1766538221987,3.33864986,123.9,123.86,3.30864986]
[1766538222208,8.07232805,123.88,123.85,2.62864986]
[1766538222406,8.78232805,123.88,123.85,3.30864986]
[1766538223132,8.78232805,123.88,123.85,0.68]
[1766538223439,14.74,123.9,123.87,0.68]
[1766538223730,14.74,123.9,123.87,3.30864986]
[1766538223908,14.74,123.9,123.87,0.68]
[1766538224309,22.81126296,123.9,123.87,0.68]
[1766538229638,14.74,123.9,123.88,0.68]
[1766538229821,8.7806646,123.91,123.88,3.30864986]
[1766538230215,8.7806646,123.91,123.89,0.68]
[1766538230526,8.0706646,123.91,123.89,0.68]
[1766538232134,8.7806646,123.91,123.87,2.62864986]
[1766538232339,28.24659874,123.91,123.87,2.62864986]
[1766538232528,0.71,123.9,123.87,2.62864986]
[1766538233351,8.78145738,123.9,123.87,2.62864986]
[1766538234132,8.78145738,123.9,123.87,3.30864986]
[1766538238863,8.78145738,123.9,123.87,2.62864986]
[1766538239033,8.78145738,123.9,123.88,0.68]
[1766538242854,8.07145738,123.9,123.88,0.68]
[1766538243157,8.07145738,123.9,123.88,2.36261134]
[1766538247858,8.07066646,123.91,123.88,1.68261134]
[1766538248164,8.74066646,123.91,123.89,0.68]
[1766538248736,8.74066646,123.91,123.88,2.36261134]
[1766538252775,14.74,123.92,123.88,1.68261134]
[1766538252776,22.810053,123.92,123.88,1.68261134]
[1766538252938,10.43767296,123.94,123.91,2.36261134]
[1766538253147,35.58058547,123.95,123.92,0.68]
[1766538253362,0.67,123.94,123.91,0.68]
[1766538253557,0.67,123.93,123.89,2.36261134]
[1766538253762,0.67,123.92,123.89,0.68]
[1766538255069,8.7399411,123.92,123.89,0.68]
[1766538261571,0.67,123.91,123.87,0.68]
[1766538261779,0.67,123.9,123.87,0.68]
[1766538262073,14.74,123.91,123.88,1.68261134]
[1766538262277,8.7399411,123.92,123.89,0.68]
[1766538263349,8.0699411,123.92,123.9,0.68]
[1766538265053,23.47936153,123.93,123.9,0.68]
[1766538266476,8.73872112,123.94,123.91,0.68]
[1766538267282,8.73872112,123.94,123.91,2.36261134]
[1766538270187,0.67,123.94,123.91,2.36261134]
[1766538270367,0.67,123.94,123.92,0.68]
[1766538270572,8.06808789,123.95,123.93,0.68]
[1766538271391,8.73808789,123.95,123.93,0.68]
[1766538271690,8.73808789,123.95,123.92,0.68]
[1766538274193,0.67,123.94,123.9,0.7]
[1766538274491,0.67,123.94,123.91,0.7]
[1766538275081,0.67,123.94,123.91,2.38261134]
[1766538275285,23.49808789,123.95,123.92,2.38261134]
[1766538275487,8.75808789,123.95,123.92,2.38261134]
[1766538276591,8.06808789,123.95,123.92,1.68261134]
[1766538276792,8.06808789,123.95,123.93,0.7]
[1766538278904,8.75732393,123.96,123.93,0.7]
[1766538279204,8.06732393,123.96,123.94,0.7]
[1766538279400,8.77732393,123.96,123.93,1.68261134]
[1766538279580,8.77732393,123.96,123.93,2.38261134]
[1766538280286,8.77732393,123.96,123.93,0.7]
[1766538280488,0.71,123.95,123.92,2.38261134]
[1766538280806,8.06732393,123.96,123.92,1.68261134]
[1766538281106,8.06732393,123.96,123.93,0.7]
[1766538281504,0.71,123.95,123.92,2.38261134]
[1766538282798,0.71,123.95,123.93,0.7]
[1766538284677,8.77794574,123.95,123.92,2.38261134]
[1766538292215,8.77794574,123.95,123.92,0.7]
[1766538292814,8.77794574,123.95,123.92,2.38261134]
[1766538296518,8.77794574,123.95,123.92,0.7]
[1766538296893,8.77794574,123.95,123.92,2.38261134]
[1766538299715,0.71,123.97,123.94,1.68261134]
[1766538299899,8.77671739,123.97,123.95,0.7]
[1766538300401,0.71,123.99,123.96,2.38261134]
[1766538301316,8.77522166,123.99,123.96,2.38261134]
[1766538301695,8.77522166,123.99,123.96,0.7]
[1766538301895,8.77522166,123.99,123.96,3.32522511]
[1766538304299,0.71,123.98,123.95,0.7]
[1766538304499,0.71,123.98,123.95,3.32522511]
[1766538304999,0.71,123.98,123.96,0.7]
[1766538305405,8.77522166,123.99,123.96,3.32522511]
[1766538306629,8.77522166,123.99,123.96,0.7]
[1766538307631,8.77522166,123.99,123.96,3.32522511]
[1766538310536,0.68,123.98,123.94,0.71]
[1766538310826,0.68,123.98,123.94,3.33522511]
[1766538312112,0.68,123.97,123.94,3.33522511]
[1766538314435,0.68,123.97,123.95,2.62522511]
[1766538314608,0.68,123.98,123.95,3.33522511]
[1766538314934,0.68,123.98,123.96,2.62522511]
[1766538315137,8.74546891,123.99,123.96,3.33522511]
[1766538315633,0.68,123.99,123.96,3.33522511]
[1766538316528,8.7451965,123.99,123.96,3.33522511]
[1766538317939,0.1,124.0,123.98,3.33522511]
[1766538318418,0.1,124.0,123.99,3.33522511]
[1766538318732,0.78,124.02,123.99,3.33522511]
[1766538318945,0.78,124.02,124.0,2.62522511]
[1766538319116,8.84324576,124.02,124.0,2.62522511]
[1766538319438,8.84324576,124.02,123.99,3.33522511]
[1766538320735,8.84324576,124.02,123.99,0.71]
[1766538320915,8.84324576,124.02,123.99,3.33522511]
[1766538321919,0.78,124.02,123.99,3.33522511]
[1766538323425,8.84325701,124.02,123.99,3.33522511]
[1766538323838,8.84325701,124.02,123.99,0.71]
[1766538324141,0.68,124.01,123.97,3.33522511]
[1766538324638,0.68,124.01,123.97,11.40164596]
[1766538325137,0.68,124.01,123.98,0.71]
[1766538327946,0.68,124.01,123.98,3.33522511]
[1766538328117,0.1,124.02,124.0,0.71]
[1766538328919,0.1,124.02,124.0,3.33522511]
[1766538329120,8.16268984,124.03,124.01,3.33522511]
[1766538329121,0.1,124.03,124.01,3.33522511]
[1766538331947,0.1,124.03,124.01,0.71]
[1766538332140,0.1,124.03,124.01,3.33522511]
[1766538332342,0.78,124.03,124.01,0.71]
[1766538333128,0.78,124.03,123.99,2.62522511]
[1766538333429,0.78,124.03,124.0,2.62522511]
[1766538333632,0.1,124.03,124.01,0.71]
[1766538335429,0.81,124.03,124.01,0.71]
[1766538336256,0.81,124.03,124.0,3.34522511]
[1766538337251,8.87277851,124.03,124.0,3.34522511]
[1766538337453,8.87277851,124.03,123.99,2.62522511]
[1766538337454,8.16277851,124.03,123.99,2.62522511]
[1766538337754,0.68,124.02,123.99,3.27522511]
[1766538338655,0.68,124.02,124.0,0.65]
[1766538338954,0.68,124.02,123.99,3.27522511]
[1766538339132,8.74332228,124.02,123.99,3.27522511]
[1766538339333,8.74332228,124.02,123.99,0.65]
[1766538339551,0.68,124.01,123.99,0.65]
[1766538339941,8.74332228,124.02,123.99,0.65]
[1766538340542,8.06393138,124.01,123.97,25.15767296]
[1766538340750,0.68,124.0,123.97,13.71289807]
[1766538340946,0.68,124.0,123.97,3.27522511]
[1766538341338,0.68,123.99,123.96,0.65]
[1766538341540,0.68,123.98,123.95,11.08767296]
[1766538341744,0.68,123.98,123.95,0.65]
[1766538345263,0.68,123.98,123.95,3.27522511]
[1766538345573,0.68,123.98,123.95,0.65]
[1766538345574,8.74601842,123.98,123.95,0.65]
[1766538346146,8.74601842,123.98,123.95,3.27522511]
[1766538346749,8.74601842,123.98,123.95,0.65]
[1766538346949,0.68,123.98,123.95,3.27522511]
[1766538347356,0.68,123.98,123.95,0.65]
[1766538348162,8.7460715,123.98,123.95,0.65]
[1766538348370,3.30522511,123.97,123.93,0.65]
[1766538348539,0.68,123.96,123.93,0.65]
[1766538350468,0.68,123.96,123.94,0.65]
[1766538350644,8.74719302,123.96,123.94,0.65]
[1766538350846,8.74719302,123.96,123.93,3.27522511]
[1766538351342,8.74719302,123.96,123.94,0.65]
[1766538351542,0.68,123.96,123.94,0.65]
[1766538353271,8.74724911,123.96,123.94,0.65]
[1766538354875,8.74674959,123.97,123.94,0.65]
[1766538356063,8.06607502,123.98,123.95,0.65]
[1766538356267,8.06607502,123.98,123.96,0.65]
[1766538356768,8.74467706,124.0,123.97,0.65]
[1766538359052,8.74467706,124.0,123.97,3.27522511]
[1766538359476,8.74467706,124.0,123.98,0.65]
[1766538359851,8.74401875,124.01,123.98,0.65]
[1766538361575,0.68,124.0,123.97,2.62522511]
[1766538361782,0.68,124.0,123.97,3.27522511]
[1766538361954,0.68,124.0,123.98,0.65]
[1766538362155,8.74401875,124.01,123.98,0.65]
[1766538363682,0.1,124.03,124.01,0.65]
[1766538364056,0.1,124.03,124.01,2.32893316]
[1766538364655,0.78,124.03,124.01,2.32893316]
[1766538365371,0.78,124.03,124.01,1.67893316]
[1766538366472,0.78,124.03,124.0,0.65]
[1766538366779,0.78,124.03,124.01,1.67893316]
[1766538368495,0.78,124.03,124.01,0.7]
[1766538371658,0.78,124.03,124.0,1.67893316]
[1766538371863,0.78,124.03,124.0,2.37893316]
[1766538378395,0.71,124.02,123.98,23.4856606]
[1766538378598,0.71,124.02,123.99,0.7]
[1766538378807,0.71,124.02,123.99,2.37893316]
[1766538379490,0.71,124.02,124.0,0.7]
[1766538380807,8.87258042,124.03,124.0,0.7]
[1766538384391,8.87258042,124.03,124.0,2.37893316]
[1766538384591,0.81,124.03,124.01,2.37893316]
[1766538385206,0.81,124.03,124.01,0.7]
[1766538396615,0.1,124.03,124.01,9.7427204]
[1766538396800,0.1,124.04,124.03,0.68]
[1766538397007,0.1,124.04,124.03,2.35893316]
[1766538401330,0.1,124.04,124.02,2.36893316]
[1766538401506,0.81,124.04,124.01,2.36893316]
[1766538402006,0.71,124.03,123.99,20.27361676]
[1766538402212,0.71,124.03,123.99,10.43404875]
[1766538402615,0.71,124.03,124.0,0.69]
[1766538403224,0.71,124.03,123.99,9.74404875]
[1766538403434,0.71,124.03,124.0,0.69]
[1766538404032,0.71,124.02,123.99,2.36893316]
[1766538405710,0.71,124.02,123.99,0.69]
[1766538405915,0.71,124.02,123.99,2.36893316]
[1766538406854,0.71,124.03,124.0,2.36893316]
[1766538407039,8.16217417,124.04,123.99,8.06502012]
[1766538407040,0.81,124.04,124.01,2.36893316]
[1766538408152,0.1,124.04,124.01,9.742705]
[1766538408355,0.1,124.04,124.02,0.69]
[1766538408546,0.1,124.04,124.02,2.36893316]
[1766538409052,0.1,124.04,124.03,0.69]
[1766538409758,0.1,124.04,124.02,2.36893316]
[1766538414347,0.1,124.04,124.03,0.69]
[1766538416959,0.1,124.04,124.03,2.36893316]
[1766538421159,0.81,124.06,124.04,0.69]
[1766538421461,0.1,124.06,124.04,2.36893316]
[1766538422665,0.81,124.06,124.04,2.36893316]
[1766538425463,0.81,124.06,124.04,0.69]
[1766538427277,0.81,124.06,124.04,11.37414483]
[1766538427278,0.1,124.06,124.04,11.37414483]
[1766538427664,0.1,124.06,124.04,3.31225163]
[1766538431663,0.1,124.06,124.04,3.27225163]
[1766538431864,0.1,124.07,124.06,0.65]
[1766538432303,0.1,124.07,124.06,3.27225163]
[1766538432453,0.2,124.08,124.07,0.65]
[1766538432660,0.2,124.08,124.07,3.27225163]
[1766538432958,0.2,124.08,124.07,0.65]
[1766538433162,0.2,124.08,124.06,3.27225163]
[1766538433877,0.2,124.08,124.06,2.62225163]
[1766538434083,0.2,124.08,124.07,0.65]
[1766538434262,0.2,124.08,124.07,3.27225163]
[1766538435481,0.2,124.08,124.07,0.65]
[1766538437573,0.2,124.09,124.07,10.68221777]
[1766538437782,0.1,124.1,124.08,2.62225163]
[1766538437954,0.1,124.1,124.08,3.27225163]
[1766538438157,0.1,124.1,124.08,10.68150267]
[1766538438364,0.1,124.1,124.08,11.33150267]
[1766538438570,0.1,124.11,124.09,3.27225163]
[1766538439382,0.1,124.11,124.1,3.27225163]
[1766538439681,0.1,124.13,124.11,0.65]
[1766538439851,4.61282318,124.14,124.12,3.27225163]
[1766538440047,0.68,124.13,124.1,0.65]
[1766538440670,0.68,124.13,124.1,3.27225163]
[1766538441171,0.68,124.13,124.1,0.65]
[1766538441371,4.61282318,124.14,124.12,2.62225163]
[1766538441680,4.61282318,124.14,124.13,2.62225163]
[1766538441872,0.68,124.13,124.09,0.65]
[1766538442061,0.68,124.13,124.1,3.27225163]
[1766538442262,0.68,124.13,124.1,0.65]
[1766538442463,0.68,124.13,124.1,3.27225163]
[1766538443165,0.68,124.13,124.1,11.33025081]
[1766538443379,5.29282318,124.14,124.11,3.27225163]
[1766538444293,5.29282318,124.14,124.12,0.65]
[1766538444471,4.61282318,124.14,124.12,3.27225163]
[1766538445799,4.61282318,124.14,124.13,2.62225163]
[1766538446382,0.1,124.15,124.14,0.65]
[1766538446579,0.1,124.16,124.14,3.27225163]
[1766538446780,0.1,124.16,124.15,2.62225163]
[1766538447391,0.68,124.18,124.15,3.27225163]
[1766538447589,0.68,124.18,124.16,2.62225163]
[1766538447772,0.68,124.18,124.15,0.65]
[1766538447972,0.68,124.18,124.14,0.65]
[1766538448279,0.68,124.17,124.13,2.62225163]
[1766538448696,0.68,124.17,124.12,8.70652827]
[1766538448993,0.68,124.17,124.14,2.62225163]
[1766538449510,0.68,124.17,124.15,2.62225163]
[1766538449879,0.68,124.17,124.14,0.65]
[1766538450092,0.68,124.17,124.14,3.27225163]
[1766538450297,0.68,124.16,124.13,2.62225163]
[1766538450802,0.68,124.16,124.13,3.27225163]
[1766538451183,0.68,124.16,124.14,2.62225163]
[1766538451503,21.58712165,124.19,124.14,2.62225163]
[1766538452586,8.05282654,124.18,124.14,2.62225163]
[1766538452991,10.67507817,124.18,124.13,3.27225163]